Workbook

Sheet Cover
C11: La trasparenza al servizio della salute
C14: Pazienti.org
C15: Business Plan
C20: Dicembre 2009

Sheet Summary
A1: Pazienti.org | P1: Pazienti.org | AD1: Pazienti.org
A2: Business Plan - 2010 | P2: Business Plan - 2011 | AD2: Business Plan - 2012
N3: Totale | AB3: Totale | AP3: Totale
B4: 2010-01-01 | C4: 2010-02-01 | D4: 2010-03-01 | E4: 2010-04-01 | F4: 2010-05-01 | G4: 2010-06-01 | H4: 2010-07-01 | I4: 2010-08-01 | J4: 2010-09-01 | K4: 2010-10-01 | L4: 2010-11-01 | M4: 2010-12-01 | N4: 2010 | P4: 2011-01-01 | Q4: 2011-02-01 | R4: 2011-03-01 | S4: 2011-04-01 | T4: 2011-05-01 | U4: 2011-06-01 | V4: 2011-07-01 | W4: 2011-08-01 | X4: 2011-09-01 | Y4: 2011-10-01 | Z4: 2011-11-01 | AA4: 2011-12-01 | AB4: 2011 | AD4: 2012-01-01 | AE4: 2012-02-01 | AF4: 2012-03-01 | AG4: 2012-04-01 | AH4: 2012-05-01 | AI4: 2012-06-01 | AJ4: 2012-07-01 | AK4: 2012-08-01 | AL4: 2012-09-01 | AM4: 2012-10-01 | AN4: 2012-11-01 | AO4: 2012-12-01 | AP4: 2012
A6: Costi
A8: Costituzione e spese amministrative | B8: ='Input Costi'!B6 -> 700 | C8: ='Input Costi'!C6 -> 0 | D8: ='Input Costi'!D6 -> 0 | E8: ='Input Costi'!E6 -> 0 | F8: ='Input Costi'!F6 -> 0 | G8: ='Input Costi'!G6 -> 0 | H8: ='Input Costi'!H6 -> 500 | I8: ='Input Costi'!I6 -> 0 | J8: ='Input Costi'!J6 -> 0 | K8: ='Input Costi'!K6 -> 0 | L8: ='Input Costi'!L6 -> 0 | M8: ='Input Costi'!M6 -> 0 | N8: =SUM(B8:M8) -> 1200 | P8: ='Input Costi'!N6 -> 750 | Q8: ='Input Costi'!O6 -> 0 | R8: ='Input Costi'!P6 -> 0 | S8: ='Input Costi'!Q6 -> 0 | T8: ='Input Costi'!R6 -> 0 | U8: ='Input Costi'!S6 -> 0 | V8: ='Input Costi'!T6 -> 750 | W8: ='Input Costi'!U6 -> 0 | X8: ='Input Costi'!V6 -> 0 | Y8: ='Input Costi'!W6 -> 0 | Z8: ='Input Costi'!X6 -> 0 | AA8: ='Input Costi'!Y6 -> 0 | AB8: =SUM(P8:AA8) -> 1500 | AD8: ='Input Costi'!Z6 -> 1000 | AE8: ='Input Costi'!AA6 -> 0 | AF8: ='Input Costi'!AB6 -> 0 | AG8: ='Input Costi'!AC6 -> 0 | AH8: ='Input Costi'!AD6 -> 0 | AI8: ='Input Costi'!AE6 -> 0 | AJ8: ='Input Costi'!AF6 -> 1000 | AK8: ='Input Costi'!AG6 -> 0 | AL8: ='Input Costi'!AH6 -> 0 | AM8: ='Input Costi'!AI6 -> 0 | AN8: ='Input Costi'!AJ6 -> 0 | AO8: ='Input Costi'!AK6 -> 0 | AP8: =SUM(AD8:AO8) -> 2000
A9: Adattamento software | B9: ='Input Costi'!B10 -> 500 | C9: ='Input Costi'!C10 -> 500 | D9: ='Input Costi'!D10 -> 500 | E9: ='Input Costi'!E10 -> 0 | F9: ='Input Costi'!F10 -> 0 | G9: ='Input Costi'!G10 -> 0 | H9: ='Input Costi'!H10 -> 0 | I9: ='Input Costi'!I10 -> 0 | J9: ='Input Costi'!J10 -> 0 | K9: ='Input Costi'!K10 -> 0 | L9: ='Input Costi'!L10 -> 0 | M9: ='Input Costi'!M10 -> 0 | N9: =SUM(B9:M9) -> 1500 | P9: ='Input Costi'!N10 -> 0 | Q9: ='Input Costi'!O10 -> 0 | R9: ='Input Costi'!P10 -> 0 | S9: ='Input Costi'!Q10 -> 0 | T9: ='Input Costi'!R10 -> 0 | U9: ='Input Costi'!S10 -> 0 | V9: ='Input Costi'!T10 -> 0 | W9: ='Input Costi'!U10 -> 0 | X9: ='Input Costi'!V10 -> 0 | Y9: ='Input Costi'!W10 -> 0 | Z9: ='Input Costi'!X10 -> 0 | AA9: ='Input Costi'!Y10 -> 0 | AB9: =SUM(P9:AA9) -> 0 | AD9: ='Input Costi'!Z10 -> 0 | AE9: ='Input Costi'!AA10 -> 0 | AF9: ='Input Costi'!AB10 -> 0 | AG9: ='Input Costi'!AC10 -> 0 | AH9: ='Input Costi'!AD10 -> 0 | AI9: ='Input Costi'!AE10 -> 0 | AJ9: ='Input Costi'!AF10 -> 0 | AK9: ='Input Costi'!AG10 -> 0 | AL9: ='Input Costi'!AH10 -> 0 | AM9: ='Input Costi'!AI10 -> 0 | AN9: ='Input Costi'!AJ10 -> 0 | AO9: ='Input Costi'!AK10 -> 0 | AP9: =SUM(AD9:AO9) -> 0
A10: Project manager | B10: ='Input Costi'!B13 -> 3000 | C10: ='Input Costi'!C13 -> 3000 | D10: ='Input Costi'!D13 -> 3000 | E10: ='Input Costi'!E13 -> 3000 | F10: ='Input Costi'!F13 -> 3000 | G10: ='Input Costi'!G13 -> 3000 | H10: ='Input Costi'!H13 -> 3000 | I10: ='Input Costi'!I13 -> 3000 | J10: ='Input Costi'!J13 -> 3000 | K10: ='Input Costi'!K13 -> 3000 | L10: ='Input Costi'!L13 -> 3000 | M10: ='Input Costi'!M13 -> 3000 | N10: 36000 | P10: ='Input Costi'!N13 -> 3000 | Q10: ='Input Costi'!O13 -> 3000 | R10: ='Input Costi'!P13 -> 3000 | S10: ='Input Costi'!Q13 -> 3000 | T10: ='Input Costi'!R13 -> 3000 | U10: ='Input Costi'!S13 -> 3000 | V10: ='Input Costi'!T13 -> 3000 | W10: ='Input Costi'!U13 -> 3000 | X10: ='Input Costi'!V13 -> 3000 | Y10: ='Input Costi'!W13 -> 3000 | Z10: ='Input Costi'!X13 -> 3000 | AA10: ='Input Costi'!Y13 -> 3000 | AB10: 36000 | AD10: ='Input Costi'!Z12 -> 6000 | AE10: ='Input Costi'!AA12 -> 6000 | AF10: ='Input Costi'!AB12 -> 6000 | AG10: ='Input Costi'!AC12 -> 6000 | AH10: ='Input Costi'!AD12 -> 6000 | AI10: ='Input Costi'!AE12 -> 6000 | AJ10: ='Input Costi'!AF12 -> 6000 | AK10: ='Input Costi'!AG12 -> 6000 | AL10: ='Input Costi'!AH12 -> 6000 | AM10: ='Input Costi'!AI12 -> 6000 | AN10: ='Input Costi'!AJ12 -> 6000 | AO10: ='Input Costi'!AK12 -> 6000 | AP10: 72000
A11: Creazione database strutture sanitarie | B11: ='Input Costi'!B16 -> 1000 | C11: ='Input Costi'!C16 -> 1000 | D11: ='Input Costi'!D16 -> 1000 | E11: ='Input Costi'!E16 -> 0 | F11: ='Input Costi'!F16 -> 0 | G11: ='Input Costi'!G16 -> 0 | H11: ='Input Costi'!H16 -> 0 | I11: ='Input Costi'!I16 -> 0 | J11: ='Input Costi'!J16 -> 0 | K11: ='Input Costi'!K16 -> 0 | L11: ='Input Costi'!L16 -> 0 | M11: ='Input Costi'!M16 -> 0 | N11: 3000 | P11: ='Input Costi'!N16 -> 0 | Q11: ='Input Costi'!O16 -> 0 | R11: ='Input Costi'!P16 -> 0 | S11: ='Input Costi'!Q16 -> 0 | T11: ='Input Costi'!R16 -> 0 | U11: ='Input Costi'!S16 -> 0 | V11: ='Input Costi'!T16 -> 0 | W11: ='Input Costi'!U16 -> 0 | X11: ='Input Costi'!V16 -> 0 | Y11: ='Input Costi'!W16 -> 0 | Z11: ='Input Costi'!X16 -> 0 | AA11: ='Input Costi'!Y16 -> 0 | AB11: 0 | AD11: ='Input Costi'!Y16 -> 0 | AE11: ='Input Costi'!Z16 -> 0 | AF11: ='Input Costi'!AA16 -> 0 | AG11: ='Input Costi'!AB16 -> 0 | AH11: ='Input Costi'!AC16 -> 0 | AI11: ='Input Costi'!AD16 -> 0 | AJ11: ='Input Costi'!AE16 -> 0 | AK11: ='Input Costi'!AF16 -> 0 | AL11: ='Input Costi'!AG16 -> 0 | AM11: ='Input Costi'!AH16 -> 0 | AN11: ='Input Costi'!AI16 -> 0 | AO11: ='Input Costi'!AJ16 -> 0 | AP11: 0
A12: Acquisto computer e materiale di ufficio | B12: ='Input Costi'!B21 -> 850 | C12: ='Input Costi'!C21 -> 50 | D12: ='Input Costi'!D21 -> 50 | E12: ='Input Costi'!E21 -> 50 | F12: ='Input Costi'!F21 -> 50 | G12: ='Input Costi'!G21 -> 50 | H12: ='Input Costi'!H21 -> 50 | I12: ='Input Costi'!I21 -> 50 | J12: ='Input Costi'!J21 -> 50 | K12: ='Input Costi'!K21 -> 50 | L12: ='Input Costi'!L21 -> 50 | M12: ='Input Costi'!M21 -> 50 | N12: 1400 | P12: ='Input Costi'!N21 -> 1050 | Q12: ='Input Costi'!O21 -> 50 | R12: ='Input Costi'!P21 -> 50 | S12: ='Input Costi'!Q21 -> 50 | T12: ='Input Costi'!R21 -> 50 | U12: ='Input Costi'!S21 -> 50 | V12: ='Input Costi'!T21 -> 50 | W12: ='Input Costi'!U21 -> 50 | X12: ='Input Costi'!V21 -> 50 | Y12: ='Input Costi'!W21 -> 50 | Z12: ='Input Costi'!X21 -> 50 | AA12: ='Input Costi'!Y21 -> 50 | AB12: 1600 | AD12: ='Input Costi'!Z21 -> 1050 | AE12: ='Input Costi'!AA21 -> 50 | AF12: ='Input Costi'!AB21 -> 50 | AG12: ='Input Costi'!AC21 -> 50 | AH12: ='Input Costi'!AD21 -> 50 | AI12: ='Input Costi'!AE21 -> 50 | AJ12: ='Input Costi'!AF21 -> 50 | AK12: ='Input Costi'!AG21 -> 50 | AL12: ='Input Costi'!AH21 -> 50 | AM12: ='Input Costi'!AI21 -> 50 | AN12: ='Input Costi'!AJ21 -> 50 | AO12: ='Input Costi'!AK21 -> 50 | AP12: 1600
A13: Spese trasferta nazionale/internazionale | B13: ='Input Costi'!B25 -> 300 | C13: ='Input Costi'!C25 -> 0 | D13: ='Input Costi'!D25 -> 0 | E13: ='Input Costi'!E25 -> 0 | F13: ='Input Costi'!F25 -> 0 | G13: ='Input Costi'!G25 -> 200 | H13: ='Input Costi'!H25 -> 200 | I13: ='Input Costi'!I25 -> 200 | J13: ='Input Costi'!J25 -> 200 | K13: ='Input Costi'!K25 -> 200 | L13: ='Input Costi'!L25 -> 200 | M13: ='Input Costi'!M25 -> 200 | N13: 1700 | P13: ='Input Costi'!N25 -> 300 | Q13: ='Input Costi'!O25 -> 300 | R13: ='Input Costi'!P25 -> 300 | S13: ='Input Costi'!Q25 -> 300 | T13: ='Input Costi'!R25 -> 400 | U13: ='Input Costi'!S25 -> 400 | V13: ='Input Costi'!T25 -> 400 | W13: ='Input Costi'!U25 -> 400 | X13: ='Input Costi'!V25 -> 400 | Y13: ='Input Costi'!W25 -> 400 | Z13: ='Input Costi'!X25 -> 400 | AA13: ='Input Costi'!Y25 -> 400 | AB13: 4400 | AD13: ='Input Costi'!Z25 -> 400 | AE13: ='Input Costi'!AA25 -> 400 | AF13: ='Input Costi'!AB25 -> 400 | AG13: ='Input Costi'!AC25 -> 400 | AH13: ='Input Costi'!AD25 -> 400 | AI13: ='Input Costi'!AE25 -> 400 | AJ13: ='Input Costi'!AF25 -> 400 | AK13: ='Input Costi'!AG25 -> 400 | AL13: ='Input Costi'!AH25 -> 400 | AM13: ='Input Costi'!AI25 -> 400 | AN13: ='Input Costi'!AJ25 -> 400 | AO13: ='Input Costi'!AK25 -> 400 | AP13: 4800
A14: Studio e realizzazione campagna marketing per pazienti | B14: ='Input Costi'!B29 -> 2000 | C14: ='Input Costi'!C29 -> 3000 | D14: ='Input Costi'!D29 -> 0 | E14: ='Input Costi'!E29 -> 5000 | F14: ='Input Costi'!F29 -> 5000 | G14: ='Input Costi'!G29 -> 0 | H14: ='Input Costi'!H29 -> 0 | I14: ='Input Costi'!I29 -> 0 | J14: ='Input Costi'!J29 -> 0 | K14: ='Input Costi'!K29 -> 0 | L14: ='Input Costi'!L29 -> 0 | M14: ='Input Costi'!M29 -> 0 | N14: 15000 | P14: ='Input Costi'!N28 -> 0 | Q14: ='Input Costi'!O28 -> 0 | R14: ='Input Costi'!P28 -> 0 | S14: ='Input Costi'!Q28 -> 0 | T14: ='Input Costi'!R28 -> 0 | U14: ='Input Costi'!S28 -> 0 | V14: ='Input Costi'!T28 -> 0 | W14: ='Input Costi'!U28 -> 0 | X14: ='Input Costi'!V28 -> 0 | Y14: ='Input Costi'!W28 -> 0 | Z14: ='Input Costi'!X28 -> 0 | AA14: ='Input Costi'!Y28 -> 0 | AB14: 0 | AD14: ='Input Costi'!Z29 -> 0 | AE14: ='Input Costi'!AA29 -> 0 | AF14: ='Input Costi'!AB29 -> 0 | AG14: ='Input Costi'!AC29 -> 0 | AH14: ='Input Costi'!AD29 -> 0 | AI14: ='Input Costi'!AE29 -> 0 | AJ14: ='Input Costi'!AF29 -> 0 | AK14: ='Input Costi'!AG29 -> 0 | AL14: ='Input Costi'!AH29 -> 0 | AM14: ='Input Costi'!AI29 -> 0 | AN14: ='Input Costi'!AJ29 -> 0 | AO14: ='Input Costi'!AK29 -> 0 | AP14: 0
A15: Hosting piattaforma web | B15: ='Input Costi'!B30 -> 100 | C15: ='Input Costi'!C30 -> 100 | D15: ='Input Costi'!D30 -> 100 | E15: ='Input Costi'!E30 -> 100 | F15: ='Input Costi'!F30 -> 100 | G15: ='Input Costi'!G30 -> 100 | H15: ='Input Costi'!H30 -> 100 | I15: ='Input Costi'!I30 -> 100 | J15: ='Input Costi'!J30 -> 100 | K15: ='Input Costi'!K30 -> 100 | L15: ='Input Costi'!L30 -> 100 | M15: ='Input Costi'!M30 -> 100 | N15: 1200 | P15: ='Input Costi'!N30 -> 100 | Q15: ='Input Costi'!O30 -> 100 | R15: ='Input Costi'!P30 -> 100 | S15: ='Input Costi'!Q30 -> 100 | T15: ='Input Costi'!R30 -> 100 | U15: ='Input Costi'!S30 -> 100 | V15: ='Input Costi'!T30 -> 100 | W15: ='Input Costi'!U30 -> 100 | X15: ='Input Costi'!V30 -> 100 | Y15: ='Input Costi'!W30 -> 100 | Z15: ='Input Costi'!X30 -> 100 | AA15: ='Input Costi'!Y30 -> 100 | AB15: 1200 | AD15: ='Input Costi'!Z31 -> 100 | AE15: ='Input Costi'!AA31 -> 100 | AF15: ='Input Costi'!AB31 -> 100 | AG15: ='Input Costi'!AC31 -> 100 | AH15: ='Input Costi'!AD31 -> 100 | AI15: ='Input Costi'!AE31 -> 100 | AJ15: ='Input Costi'!AF31 -> 100 | AK15: ='Input Costi'!AG31 -> 100 | AL15: ='Input Costi'!AH31 -> 100 | AM15: ='Input Costi'!AI31 -> 100 | AN15: ='Input Costi'!AJ31 -> 100 | AO15: ='Input Costi'!AK31 -> 100 | AP15: 1200
A16: Spese Telefoniche | B16: ='Input Costi'!B32 -> 200 | C16: ='Input Costi'!C32 -> 200 | D16: ='Input Costi'!D32 -> 200 | E16: ='Input Costi'!E32 -> 200 | F16: ='Input Costi'!F32 -> 200 | G16: ='Input Costi'!G32 -> 200 | H16: ='Input Costi'!H32 -> 300 | I16: ='Input Costi'!I32 -> 300 | J16: ='Input Costi'!J32 -> 300 | K16: ='Input Costi'!K32 -> 300 | L16: ='Input Costi'!L32 -> 300 | M16: ='Input Costi'!M32 -> 300 | N16: 3000 | P16: ='Input Costi'!N32 -> 400 | Q16: ='Input Costi'!O32 -> 400 | R16: ='Input Costi'!P32 -> 400 | S16: ='Input Costi'!Q32 -> 400 | T16: ='Input Costi'!R32 -> 400 | U16: ='Input Costi'!S32 -> 400 | V16: ='Input Costi'!T32 -> 400 | W16: ='Input Costi'!U32 -> 400 | X16: ='Input Costi'!V32 -> 400 | Y16: ='Input Costi'!W32 -> 400 | Z16: ='Input Costi'!X32 -> 400 | AA16: ='Input Costi'!Y32 -> 400 | AB16: 4800 | AD16: ='Input Costi'!Z33 -> 500 | AE16: ='Input Costi'!AA33 -> 500 | AF16: ='Input Costi'!AB33 -> 500 | AG16: ='Input Costi'!AC33 -> 500 | AH16: ='Input Costi'!AD33 -> 500 | AI16: ='Input Costi'!AE33 -> 500 | AJ16: ='Input Costi'!AF33 -> 500 | AK16: ='Input Costi'!AG33 -> 500 | AL16: ='Input Costi'!AH33 -> 500 | AM16: ='Input Costi'!AI33 -> 500 | AN16: ='Input Costi'!AJ33 -> 500 | AO16: ='Input Costi'!AK33 -> 500 | AP16: 6000
A17: Studio e realizzazione campagna marketing per sottoscrittori | B17: ='Input Costi'!B37 -> 0 | C17: ='Input Costi'!C37 -> 0 | D17: ='Input Costi'!D37 -> 0 | E17: ='Input Costi'!E37 -> 0 | F17: ='Input Costi'!F37 -> 0 | G17: ='Input Costi'!G37 -> 0 | H17: ='Input Costi'!H37 -> 0 | I17: ='Input Costi'!I37 -> 0 | J17: ='Input Costi'!J37 -> 0 | K17: ='Input Costi'!K37 -> 0 | L17: ='Input Costi'!L37 -> 0 | M17: ='Input Costi'!M37 -> 0 | N17: 0 | P17: ='Input Costi'!N37 -> 7000 | Q17: ='Input Costi'!O37 -> 8000 | R17: ='Input Costi'!P37 -> 0 | S17: ='Input Costi'!Q37 -> 0 | T17: ='Input Costi'!R37 -> 0 | U17: ='Input Costi'!S37 -> 0 | V17: ='Input Costi'!T37 -> 0 | W17: ='Input Costi'!U37 -> 0 | X17: ='Input Costi'!V37 -> 0 | Y17: ='Input Costi'!W37 -> 0 | Z17: ='Input Costi'!X37 -> 0 | AA17: ='Input Costi'!Y37 -> 0 | AB17: 15000 | AD17: ='Input Costi'!Z37 -> 5000 | AE17: ='Input Costi'!AA37 -> 5000 | AF17: ='Input Costi'!AB37 -> 0 | AG17: ='Input Costi'!AC37 -> 0 | AH17: ='Input Costi'!AD37 -> 0 | AI17: ='Input Costi'!AE37 -> 0 | AJ17: ='Input Costi'!AF37 -> 0 | AK17: ='Input Costi'!AG37 -> 0 | AL17: ='Input Costi'!AH37 -> 0 | AM17: ='Input Costi'!AI37 -> 0 | AN17: ='Input Costi'!AJ37 -> 0 | AO17: ='Input Costi'!AK37 -> 0 | AP17: 10000
A18: Editor e moderatore | B18: ='Input Costi'!B40 -> 0 | C18: ='Input Costi'!C40 -> 0 | D18: ='Input Costi'!D40 -> 0 | E18: ='Input Costi'!E40 -> 0 | F18: ='Input Costi'!F40 -> 0 | G18: ='Input Costi'!G40 -> 0 | H18: ='Input Costi'!H40 -> 0 | I18: ='Input Costi'!I40 -> 0 | J18: ='Input Costi'!J40 -> 0 | K18: ='Input Costi'!K40 -> 0 | L18: ='Input Costi'!L40 -> 0 | M18: ='Input Costi'!M40 -> 0 | N18: 0 | P18: ='Input Costi'!N40 -> 3000 | Q18: ='Input Costi'!O40 -> 3000 | R18: ='Input Costi'!P40 -> 3000 | S18: ='Input Costi'!Q40 -> 3000 | T18: ='Input Costi'!R40 -> 3000 | U18: ='Input Costi'!S40 -> 3000 | V18: ='Input Costi'!T40 -> 3000 | W18: ='Input Costi'!U40 -> 3000 | X18: ='Input Costi'!V40 -> 3000 | Y18: ='Input Costi'!W40 -> 3000 | Z18: ='Input Costi'!X40 -> 3000 | AA18: ='Input Costi'!Y40 -> 3000 | AB18: 36000 | AD18: ='Input Costi'!Z40 -> 6000 | AE18: ='Input Costi'!AA40 -> 6000 | AF18: ='Input Costi'!AB40 -> 6000 | AG18: ='Input Costi'!AC40 -> 6000 | AH18: ='Input Costi'!AD40 -> 6000 | AI18: ='Input Costi'!AE40 -> 6000 | AJ18: ='Input Costi'!AF40 -> 6000 | AK18: ='Input Costi'!AG40 -> 6000 | AL18: ='Input Costi'!AH40 -> 6000 | AM18: ='Input Costi'!AI40 -> 6000 | AN18: ='Input Costi'!AJ40 -> 6000 | AO18: ='Input Costi'!AK40 -> 6000 | AP18: 72000
A19: Locazione ufficio | B19: ='Input Costi'!B43 -> 0 | C19: ='Input Costi'!C43 -> 0 | D19: ='Input Costi'!D43 -> 0 | E19: ='Input Costi'!E43 -> 0 | F19: ='Input Costi'!F43 -> 0 | G19: ='Input Costi'!G43 -> 0 | H19: ='Input Costi'!H43 -> 0 | I19: ='Input Costi'!I43 -> 0 | J19: ='Input Costi'!J43 -> 0 | K19: ='Input Costi'!K43 -> 0 | L19: ='Input Costi'!L43 -> 0 | M19: ='Input Costi'!M43 -> 0 | N19: 0 | P19: ='Input Costi'!N43 -> 1000 | Q19: ='Input Costi'!O43 -> 1000 | R19: ='Input Costi'!P43 -> 1000 | S19: ='Input Costi'!Q43 -> 1000 | T19: ='Input Costi'!R43 -> 1000 | U19: ='Input Costi'!S43 -> 1000 | V19: ='Input Costi'!T43 -> 1000 | W19: ='Input Costi'!U43 -> 1000 | X19: ='Input Costi'!V43 -> 1000 | Y19: ='Input Costi'!W43 -> 1000 | Z19: ='Input Costi'!X43 -> 1000 | AA19: ='Input Costi'!Y43 -> 1000 | AB19: 12000 | AD19: ='Input Costi'!Z43 -> 2000 | AE19: ='Input Costi'!AA43 -> 2000 | AF19: ='Input Costi'!AB43 -> 2000 | AG19: ='Input Costi'!AC43 -> 2000 | AH19: ='Input Costi'!AD43 -> 2000 | AI19: ='Input Costi'!AE43 -> 2000 | AJ19: ='Input Costi'!AF43 -> 2000 | AK19: ='Input Costi'!AG43 -> 2000 | AL19: ='Input Costi'!AH43 -> 2000 | AM19: ='Input Costi'!AI43 -> 2000 | AN19: ='Input Costi'!AJ43 -> 2000 | AO19: ='Input Costi'!AK43 -> 2000 | AP19: 24000
A20: Ufficio stampa | B20: ='Input Costi'!B46 -> 0 | C20: ='Input Costi'!C46 -> 0 | D20: ='Input Costi'!D46 -> 0 | E20: ='Input Costi'!E46 -> 0 | F20: ='Input Costi'!F46 -> 0 | G20: ='Input Costi'!G46 -> 0 | H20: ='Input Costi'!H46 -> 0 | I20: ='Input Costi'!I46 -> 0 | J20: ='Input Costi'!J46 -> 0 | K20: ='Input Costi'!K46 -> 0 | L20: ='Input Costi'!L46 -> 0 | M20: ='Input Costi'!M46 -> 0 | N20: 0 | P20: ='Input Costi'!N46 -> 600 | Q20: ='Input Costi'!O46 -> 600 | R20: ='Input Costi'!P46 -> 600 | S20: ='Input Costi'!Q46 -> 600 | T20: ='Input Costi'!R46 -> 600 | U20: ='Input Costi'!S46 -> 600 | V20: ='Input Costi'!T46 -> 600 | W20: ='Input Costi'!U46 -> 600 | X20: ='Input Costi'!V46 -> 600 | Y20: ='Input Costi'!W46 -> 600 | Z20: ='Input Costi'!X46 -> 600 | AA20: ='Input Costi'!Y46 -> 600 | AB20: 7200 | AD20: ='Input Costi'!Z46 -> 900 | AE20: ='Input Costi'!AA46 -> 900 | AF20: ='Input Costi'!AB46 -> 900 | AG20: ='Input Costi'!AC46 -> 900 | AH20: ='Input Costi'!AD46 -> 900 | AI20: ='Input Costi'!AE46 -> 900 | AJ20: ='Input Costi'!AF46 -> 900 | AK20: ='Input Costi'!AG46 -> 900 | AL20: ='Input Costi'!AH46 -> 900 | AM20: ='Input Costi'!AI46 -> 900 | AN20: ='Input Costi'!AJ46 -> 900 | AO20: ='Input Costi'!AK46 -> 900 | AP20: 10800
A21: Consulenza legale | B21: ='Input Costi'!B49 -> 0 | C21: ='Input Costi'!C49 -> 0 | D21: ='Input Costi'!D49 -> 0 | E21: ='Input Costi'!E49 -> 0 | F21: ='Input Costi'!F49 -> 0 | G21: ='Input Costi'!G49 -> 0 | H21: ='Input Costi'!H49 -> 0 | I21: ='Input Costi'!I49 -> 1000 | J21: ='Input Costi'!J49 -> 1000 | K21: ='Input Costi'!K49 -> 1000 | L21: ='Input Costi'!L49 -> 1000 | M21: ='Input Costi'!M49 -> 1000 | N21: 5000 | P21: ='Input Costi'!N49 -> 1000 | Q21: ='Input Costi'!O49 -> 1000 | R21: ='Input Costi'!P49 -> 1000 | S21: ='Input Costi'!Q49 -> 1000 | T21: ='Input Costi'!R49 -> 1000 | U21: ='Input Costi'!S49 -> 1000 | V21: ='Input Costi'!T49 -> 1000 | W21: ='Input Costi'!U49 -> 1000 | X21: ='Input Costi'!V49 -> 1000 | Y21: ='Input Costi'!W49 -> 1000 | Z21: ='Input Costi'!X49 -> 1000 | AA21: ='Input Costi'!Y49 -> 1000 | AB21: 12000 | AD21: ='Input Costi'!Z49 -> 1500 | AE21: ='Input Costi'!AA49 -> 1500 | AF21: ='Input Costi'!AB49 -> 1500 | AG21: ='Input Costi'!AC49 -> 1500 | AH21: ='Input Costi'!AD49 -> 1500 | AI21: ='Input Costi'!AE49 -> 1500 | AJ21: ='Input Costi'!AF49 -> 1500 | AK21: ='Input Costi'!AG49 -> 1500 | AL21: ='Input Costi'!AH49 -> 1500 | AM21: ='Input Costi'!AI49 -> 1500 | AN21: ='Input Costi'!AJ49 -> 1500 | AO21: ='Input Costi'!AK49 -> 1500 | AP21: 18000
A23: Totale Costi Mensile | B23: =SUM(B8:B21) -> 8650 | C23: 7850 | D23: 4850 | E23: 8350 | F23: 8350 | G23: 3550 | H23: 4150 | I23: 4650 | J23: 4650 | K23: 4650 | L23: 4650 | M23: 4650 | N23: 69000 | P23: =SUM(P8:P21) -> 18200 | Q23: 17450 | R23: 9450 | S23: 9450 | T23: 9550 | U23: 9550 | V23: 10300 | W23: 9550 | X23: 9550 | Y23: 9550 | Z23: 9550 | AA23: 9550 | AB23: =SUM(P23:AA23) -> 131700 | AD23: =SUM(AD8:AD21) -> 24450 | AE23: 22450 | AF23: 17450 | AG23: 17450 | AH23: 17450 | AI23: 17450 | AJ23: 18450 | AK23: 17450 | AL23: 17450 | AM23: 17450 | AN23: 17450 | AO23: 17450 | AP23: =SUM(AD23:AO23) -> 222400
A24: Totale Costi Cumulativo (da Gen 2010) | B24: =B23 -> 8650 | C24: =B24+C23 -> 16500 | D24: =C24+D23 -> 21350 | E24: 29700 | F24: 38050 | G24: 41600 | H24: 45750 | I24: 50400 | J24: 55050 | K24: 59700 | L24: 64350 | M24: 69000 | P24: =M24+P23 -> 87200 | Q24: =P24+Q23 -> 104650 | R24: =Q24+R23 -> 114100 | S24: 123550 | T24: 133100 | U24: 142650 | V24: 152950 | W24: 162500 | X24: 172050 | Y24: 181600 | Z24: 191150 | AA24: 200700 | AD24: =AD23+AA24 -> 225150 | AE24: =AD24+AE23 -> 247600 | AF24: =AE24+AF23 -> 265050 | AG24: =AF24+AG23 -> 282500 | AH24: =AG24+AH23 -> 299950 | AI24: =AH24+AI23 -> 317400 | AJ24: =AI24+AJ23 -> 335850 | AK24: =AJ24+AK23 -> 353300 | AL24: =AK24+AL23 -> 370750 | AM24: =AL24+AM23 -> 388200 | AN24: =AM24+AN23 -> 405650 | AO24: =AN24+AO23 -> 423100
A27: Ricavi
A29: Ospedali Pubblici | B29: ='Input Ricavi'!C20 -> 0 | C29: ='Input Ricavi'!D20 -> 0 | D29: ='Input Ricavi'!E20 -> 0 | E29: ='Input Ricavi'!F20 -> 0 | F29: ='Input Ricavi'!G20 -> 0 | G29: ='Input Ricavi'!H20 -> 0 | H29: ='Input Ricavi'!I20 -> 0 | I29: ='Input Ricavi'!J20 -> 0 | J29: ='Input Ricavi'!K20 -> 735.75 | K29: ='Input Ricavi'!L20 -> 1471.5 | L29: ='Input Ricavi'!M20 -> 1471.5 | M29: ='Input Ricavi'!N20 -> 1962 | P29: ='Input Ricavi'!O20 -> 2452.5 | Q29: ='Input Ricavi'!P20 -> 3678.75 | R29: ='Input Ricavi'!Q20 -> 4905 | S29: ='Input Ricavi'!R20 -> 4905 | T29: ='Input Ricavi'!S20 -> 4905 | U29: ='Input Ricavi'!T20 -> 6131.25 | V29: ='Input Ricavi'!U20 -> 6131.25 | W29: ='Input Ricavi'!V20 -> 6131.25 | X29: ='Input Ricavi'!W20 -> 7357.5 | Y29: ='Input Ricavi'!X20 -> 7357.5 | Z29: ='Input Ricavi'!Y20 -> 8583.75 | AA29: ='Input Ricavi'!Z20 -> 8583.75 | AD29: ='Input Ricavi'!AA20 -> 9810 | AE29: ='Input Ricavi'!AB20 -> 9810 | AF29: ='Input Ricavi'!AC20 -> 9810 | AG29: ='Input Ricavi'!AD20 -> 11036.25 | AH29: ='Input Ricavi'!AE20 -> 12262.5 | AI29: ='Input Ricavi'!AF20 -> 12262.5 | AJ29: ='Input Ricavi'!AG20 -> 12262.5 | AK29: ='Input Ricavi'!AH20 -> 13488.75 | AL29: ='Input Ricavi'!AI20 -> 14715 | AM29: ='Input Ricavi'!AJ20 -> 14715 | AN29: ='Input Ricavi'!AK20 -> 15941.25 | AO29: ='Input Ricavi'!AL20 -> 15941.25
A30: Ospedali Privati | B30: ='Input Ricavi'!C21 -> 0 | C30: ='Input Ricavi'!D21 -> 0 | D30: ='Input Ricavi'!E21 -> 0 | E30: ='Input Ricavi'!F21 -> 0 | F30: ='Input Ricavi'!G21 -> 0 | G30: ='Input Ricavi'!H21 -> 0 | H30: ='Input Ricavi'!I21 -> 0 | I30: ='Input Ricavi'!J21 -> 0 | J30: ='Input Ricavi'!K21 -> 624.375 | K30: ='Input Ricavi'!L21 -> 1248.75 | L30: ='Input Ricavi'!M21 -> 1248.75 | M30: ='Input Ricavi'!N21 -> 1665 | P30: ='Input Ricavi'!O21 -> 2081.25 | Q30: ='Input Ricavi'!P21 -> 3121.875 | R30: ='Input Ricavi'!Q21 -> 4162.5 | S30: ='Input Ricavi'!R21 -> 4162.5 | T30: ='Input Ricavi'!S21 -> 4162.5 | U30: ='Input Ricavi'!T21 -> 5203.125 | V30: ='Input Ricavi'!U21 -> 5203.125 | W30: ='Input Ricavi'!V21 -> 5203.125 | X30: ='Input Ricavi'!W21 -> 6243.75 | Y30: ='Input Ricavi'!X21 -> 6243.75 | Z30: ='Input Ricavi'!Y21 -> 7284.375 | AA30: ='Input Ricavi'!Z21 -> 7284.375 | AD30: ='Input Ricavi'!AA21 -> 8325 | AE30: ='Input Ricavi'!AB21 -> 8325 | AF30: ='Input Ricavi'!AC21 -> 8325 | AG30: ='Input Ricavi'!AD21 -> 9365.625 | AH30: ='Input Ricavi'!AE21 -> 10406.25 | AI30: ='Input Ricavi'!AF21 -> 10406.25 | AJ30: ='Input Ricavi'!AG21 -> 10406.25 | AK30: ='Input Ricavi'!AH21 -> 11446.875 | AL30: ='Input Ricavi'!AI21 -> 12487.5 | AM30: ='Input Ricavi'!AJ21 -> 12487.5 | AN30: ='Input Ricavi'!AK21 -> 13528.125 | AO30: ='Input Ricavi'!AL21 -> 13528.125
A32: Totale Ricavi Mensile | B32: =B30+B29 -> 0 | C32: =C30+C29 -> 0 | D32: 0 | E32: 0 | F32: 0 | G32: 0 | H32: 0 | I32: 0 | J32: 1360.125 | K32: 2720.25 | L32: 2720.25 | M32: 3627 | N32: =SUM(B32:M32) -> 10427.625 | P32: =P30+P29 -> 4533.75 | Q32: =Q30+Q29 -> 6800.625 | R32: 9067.5 | S32: 9067.5 | T32: 9067.5 | U32: 11334.375 | V32: 11334.375 | W32: 11334.375 | X32: 13601.25 | Y32: 13601.25 | Z32: 15868.125 | AA32: 15868.125 | AB32: =SUM(P32:AA32) -> 131478.75 | AD32: =AD30+AD29 -> 18135 | AE32: =AE30+AE29 -> 18135 | AF32: 18135 | AG32: 20401.875 | AH32: 22668.75 | AI32: 22668.75 | AJ32: 22668.75 | AK32: 24935.625 | AL32: 27202.5 | AM32: 27202.5 | AN32: 29469.375 | AO32: 29469.375 | AP32: =SUM(AD32:AO32) -> 281092.5
A33: Totale Ricavi Cumulativo (da Gen 2010) | B33: =B32 -> 0 | C33: =B33+C32 -> 0 | D33: =C33+D32 -> 0 | E33: 0 | F33: 0 | G33: 0 | H33: 0 | I33: 0 | J33: 1360.125 | K33: 4080.375 | L33: 6800.625 | M33: 10427.625 | P33: =M33+P32 -> 14961.375 | Q33: =P33+Q32 -> 21762 | R33: =Q33+R32 -> 30829.5 | S33: 39897 | T33: 48964.5 | U33: 60298.875 | V33: 71633.25 | W33: 82967.625 | X33: 96568.875 | Y33: 110170.125 | Z33: 126038.25 | AA33: 141906.375 | AD33: =AD32+AA33 -> 160041.375 | AE33: =AD33+AE32 -> 178176.375 | AF33: =AE33+AF32 -> 196311.375 | AG33: =AF33+AG32 -> 216713.25 | AH33: =AG33+AH32 -> 239382 | AI33: =AH33+AI32 -> 262050.75 | AJ33: =AI33+AJ32 -> 284719.5 | AK33: =AJ33+AK32 -> 309655.125 | AL33: =AK33+AL32 -> 336857.625 | AM33: =AL33+AM32 -> 364060.125 | AN33: =AM33+AN32 -> 393529.5 | AO33: =AN33+AO32 -> 422998.875
A36: Fabbisogno/(Rimborso) Capitale | B36: =B23-B32 -> 8650 | C36: =C23-C32 -> 7850 | D36: 4850 | E36: 8350 | F36: 8350 | G36: 3550 | H36: 4150 | I36: 4650 | J36: 3289.875 | K36: 1929.75 | L36: 1929.75 | M36: 1023 | P36: =P23-P32 -> 13666.25 | Q36: 10649.375 | R36: 382.5 | S36: 382.5 | T36: 482.5 | U36: -1784.375 | V36: -1034.375 | W36: -1784.375 | X36: -4051.25 | Y36: -4051.25 | Z36: -6318.125 | AA36: -6318.125 | AD36: =AD23-AD32 -> 6315 | AE36: 4315 | AF36: -685 | AG36: -2951.875 | AH36: -5218.75 | AI36: -5218.75 | AJ36: -4218.75 | AK36: -7485.625 | AL36: -9752.5 | AM36: -9752.5 | AN36: -12019.375 | AO36: -12019.375
A37: Fabbisogno/(Rimborso) Capitale Cumulativo | B37: =B36 -> 8650 | C37: =B37+C36 -> 16500 | D37: =C37+D36 -> 21350 | E37: 29700 | F37: 38050 | G37: 41600 | H37: 45750 | I37: 50400 | J37: 53689.875 | K37: 55619.625 | L37: 57549.375 | M37: 58572.375 | P37: =M37+P36 -> 72238.625 | Q37: =P37+Q36 -> 82888 | R37: =Q37+R36 -> 83270.5 | S37: 83653 | T37: 84135.5 | U37: 82351.125 | V37: 81316.75 | W37: 79532.375 | X37: 75481.125 | Y37: 71429.875 | Z37: 65111.75 | AA37: 58793.625 | AD37: =AA37+AD36 -> 65108.625 | AE37: =AE36+AD37 -> 69423.625 | AF37: =AF36+AE37 -> 68738.625 | AG37: 65786.75 | AH37: 60568 | AI37: 55349.25 | AJ37: 51130.5 | AK37: 43644.875 | AL37: 33892.375 | AM37: 24139.875 | AN37: 12120.5 | AO37: 101.125

Sheet Input Costi
B1: 2010-01-01 | C1: 2010-02-01 | D1: 2010-03-01 | E1: 2010-04-01 | F1: 2010-05-01 | G1: 2010-06-01 | H1: 2010-07-01 | I1: 2010-08-01 | J1: 2010-09-01 | K1: 2010-10-01 | L1: 2010-11-01 | M1: 2010-12-01 | N1: 2011-01-01 | O1: 2011-02-01 | P1: 2011-03-01 | Q1: 2011-04-01 | R1: 2011-05-01 | S1: 2011-06-01 | T1: 2011-07-01 | U1: 2011-08-01 | V1: 2011-09-01 | W1: 2011-10-01 | X1: 2011-11-01 | Y1: 2011-12-01 | Z1: 2012-01-01 | AA1: 2012-02-01 | AB1: 2012-03-01 | AC1: 2012-04-01 | AD1: 2012-05-01 | AE1: 2012-06-01 | AF1: 2012-07-01 | AG1: 2012-08-01 | AH1: 2012-09-01 | AI1: 2012-10-01 | AJ1: 2012-11-01 | AK1: 2012-12-01
A3: Costituzione e spese amministrative
A4: spese di costituzione dell'associazione | B4: 200
A5: spese consulenze commercialista | B5: 500 | H5: 500 | N5: 750 | T5: 750 | Z5: 1000 | AF5: 1000
A6: tot | B6: =B4+B5 -> 700 | C6: =C4+C5 -> 0 | D6: 0 | E6: 0 | F6: 0 | G6: 0 | H6: 500 | I6: 0 | J6: 0 | K6: 0 | L6: 0 | M6: 0 | N6: 750 | O6: 0 | P6: 0 | Q6: 0 | R6: 0 | S6: 0 | T6: 750 | U6: 0 | V6: 0 | W6: 0 | X6: 0 | Y6: 0 | Z6: =Z4+Z5 -> 1000 | AA6: 0 | AB6: 0 | AC6: 0 | AD6: 0 | AE6: 0 | AF6: 1000 | AG6: 0 | AH6: 0 | AI6: 0 | AJ6: 0 | AK6: 0
A7: Adattamento software
A8: traduzione da inglese a italiano | B8: 200
A9: modifiche ed eventuali sviluppi del software | B9: 300 | C9: 500 | D9: 500
A10: tot | B10: =B9+B8 -> 500 | C10: =C9+C8 -> 500 | D10: 500 | E10: 0 | F10: 0 | G10: 0 | H10: 0 | I10: 0 | J10: 0 | K10: 0 | L10: 0 | M10: 0 | N10: 0 | O10: 0 | P10: 0 | Q10: 0 | R10: 0 | S10: 0 | T10: 0 | U10: 0 | V10: 0 | W10: 0 | X10: 0 | Y10: 0 | Z10: =Z9+Z8 -> 0 | AA10: =AA9+AA8 -> 0 | AB10: =AB9+AB8 -> 0 | AC10: =AC9+AC8 -> 0 | AD10: =AD9+AD8 -> 0 | AE10: =AE9+AE8 -> 0 | AF10: =AF9+AF8 -> 0 | AG10: =AG9+AG8 -> 0 | AH10: =AH9+AH8 -> 0 | AI10: =AI9+AI8 -> 0 | AJ10: =AJ9+AJ8 -> 0 | AK10: =AK9+AK8 -> 0
A11: Project manager
A12: emolumento lordo mensile | B12: 3000 | C12: 3000 | D12: 3000 | E12: 3000 | F12: 3000 | G12: 3000 | H12: 3000 | I12: 3000 | J12: 3000 | K12: 3000 | L12: 3000 | M12: 3000 | N12: 3000 | O12: 3000 | P12: 3000 | Q12: 3000 | R12: 3000 | S12: 3000 | T12: 3000 | U12: 3000 | V12: 3000 | W12: 3000 | X12: 3000 | Y12: 3000 | Z12: 6000 | AA12: 6000 | AB12: 6000 | AC12: 6000 | AD12: 6000 | AE12: 6000 | AF12: 6000 | AG12: 6000 | AH12: 6000 | AI12: 6000 | AJ12: 6000 | AK12: 6000
A13: tot | B13: =B12 -> 3000 | C13: =C12 -> 3000 | D13: 3000 | E13: 3000 | F13: 3000 | G13: 3000 | H13: 3000 | I13: 3000 | J13: 3000 | K13: 3000 | L13: 3000 | M13: 3000 | N13: 3000 | O13: 3000 | P13: 3000 | Q13: 3000 | R13: 3000 | S13: 3000 | T13: 3000 | U13: 3000 | V13: 3000 | W13: 3000 | X13: 3000 | Y13: 3000 | Z13: =Z12 -> 6000 | AA13: =AA12 -> 6000 | AB13: =AB12 -> 6000 | AC13: =AC12 -> 6000 | AD13: =AD12 -> 6000 | AE13: =AE12 -> 6000 | AF13: =AF12 -> 6000 | AG13: =AG12 -> 6000 | AH13: =AH12 -> 6000 | AI13: =AI12 -> 6000 | AJ13: =AJ12 -> 6000 | AK13: =AK12 -> 6000
A14: Creazione database strutture sanitarie
A15: acquisto di database gia' esistenti | B15: 1000 | C15: 1000 | D15: 1000
A16: tot | B16: =B15 -> 1000 | C16: =C15 -> 1000 | D16: 1000 | E16: 0 | F16: 0 | G16: 0 | H16: 0 | I16: 0 | J16: 0 | K16: 0 | L16: 0 | M16: 0 | N16: 0 | O16: 0 | P16: 0 | Q16: 0 | R16: 0 | S16: 0 | T16: 0 | U16: 0 | V16: 0 | W16: 0 | X16: 0 | Y16: 0 | Z16: =Z15 -> 0 | AA16: =AA15 -> 0 | AB16: =AB15 -> 0 | AC16: =AC15 -> 0 | AD16: =AD15 -> 0 | AE16: =AE15 -> 0 | AF16: =AF15 -> 0 | AG16: =AG15 -> 0 | AH16: =AH15 -> 0 | AI16: =AI15 -> 0 | AJ16: =AJ15 -> 0 | AK16: =AK15 -> 0
A17: Acquisto computer e materiale di ufficio
A18: acquisto primo computer 2010 | B18: 800
A19: acquisto computer 2011 e 2012 | B19: 0 | N19: 1000 | Z19: 1000
A20: acquisto materiale da cancelleria | B20: 50 | C20: 50 | D20: 50 | E20: 50 | F20: 50 | G20: 50 | H20: 50 | I20: 50 | J20: 50 | K20: 50 | L20: 50 | M20: 50 | N20: 50 | O20: 50 | P20: 50 | Q20: 50 | R20: 50 | S20: 50 | T20: 50 | U20: 50 | V20: 50 | W20: 50 | X20: 50 | Y20: 50 | Z20: 50 | AA20: 50 | AB20: 50 | AC20: 50 | AD20: 50 | AE20: 50 | AF20: 50 | AG20: 50 | AH20: 50 | AI20: 50 | AJ20: 50 | AK20: 50
A21: tot | B21: =SUM(B18:B20) -> 850 | C21: =SUM(C18:C20) -> 50 | D21: 50 | E21: 50 | F21: 50 | G21: 50 | H21: 50 | I21: 50 | J21: 50 | K21: 50 | L21: 50 | M21: 50 | N21: 1050 | O21: 50 | P21: 50 | Q21: 50 | R21: 50 | S21: 50 | T21: 50 | U21: 50 | V21: 50 | W21: 50 | X21: 50 | Y21: 50 | Z21: =SUM(Z18:Z20) -> 1050 | AA21: =SUM(AA18:AA20) -> 50 | AB21: =SUM(AB18:AB20) -> 50 | AC21: =SUM(AC18:AC20) -> 50 | AD21: =SUM(AD18:AD20) -> 50 | AE21: =SUM(AE18:AE20) -> 50 | AF21: =SUM(AF18:AF20) -> 50 | AG21: =SUM(AG18:AG20) -> 50 | AH21: =SUM(AH18:AH20) -> 50 | AI21: =SUM(AI18:AI20) -> 50 | AJ21: =SUM(AJ18:AJ20) -> 50 | AK21: =SUM(AK18:AK20) -> 50
A22: Spese trasferta nazionale/internazionale
A23: trasferta a Sheffield per finalizzare accordi internazionali | B23: 300
A24: trasferte nazionali per promuovere sottoscrizioni | G24: 200 | H24: 200 | I24: 200 | J24: 200 | K24: 200 | L24: 200 | M24: 200 | N24: 300 | O24: 300 | P24: 300 | Q24: 300 | R24: 400 | S24: 400 | T24: 400 | U24: 400 | V24: 400 | W24: 400 | X24: 400 | Y24: 400 | Z24: 400 | AA24: 400 | AB24: 400 | AC24: 400 | AD24: 400 | AE24: 400 | AF24: 400 | AG24: 400 | AH24: 400 | AI24: 400 | AJ24: 400 | AK24: 400
A25: tot | B25: =SUM(B23:B24) -> 300 | C25: =SUM(C23:C24) -> 0 | D25: 0 | E25: 0 | F25: 0 | G25: 200 | H25: 200 | I25: 200 | J25: 200 | K25: 200 | L25: 200 | M25: 200 | N25: 300 | O25: 300 | P25: 300 | Q25: 300 | R25: 400 | S25: 400 | T25: 400 | U25: 400 | V25: 400 | W25: 400 | X25: 400 | Y25: 400 | Z25: =SUM(Z23:Z24) -> 400 | AA25: =SUM(AA23:AA24) -> 400 | AB25: =SUM(AB23:AB24) -> 400 | AC25: =SUM(AC23:AC24) -> 400 | AD25: =SUM(AD23:AD24) -> 400 | AE25: =SUM(AE23:AE24) -> 400 | AF25: =SUM(AF23:AF24) -> 400 | AG25: =SUM(AG23:AG24) -> 400 | AH25: =SUM(AH23:AH24) -> 400 | AI25: =SUM(AI23:AI24) -> 400 | AJ25: =SUM(AJ23:AJ24) -> 400 | AK25: =SUM(AK23:AK24) -> 400
A26: Studio e realizzazione campagna marketing rivolta ai pazienti
A27: ideazione campagna di marketing | B27: 2000 | C27: 3000
A28: pubblicita' via web, deliverables nei luoghi di pertinenza, inserzioni su riviste specialistiche, comunicazione con i medici di base | E28: 5000 | F28: 5000
A29: tot | B29: =SUM(B27:B28) -> 2000 | C29: =SUM(C27:C28) -> 3000 | D29: 0 | E29: 5000 | F29: 5000 | G29: 0 | H29: 0 | I29: 0 | J29: 0 | K29: 0 | L29: 0 | M29: 0 | N29: 0 | O29: 0 | P29: 0 | Q29: 0 | R29: 0 | S29: 0 | T29: 0 | U29: 0 | V29: 0 | W29: 0 | X29: 0 | Y29: 0 | Z29: =SUM(Z27:Z28) -> 0 | AA29: =SUM(AA27:AA28) -> 0 | AB29: =SUM(AB27:AB28) -> 0 | AC29: =SUM(AC27:AC28) -> 0 | AD29: =SUM(AD27:AD28) -> 0 | AE29: =SUM(AE27:AE28) -> 0 | AF29: =SUM(AF27:AF28) -> 0 | AG29: =SUM(AG27:AG28) -> 0 | AH29: =SUM(AH27:AH28) -> 0 | AI29: =SUM(AI27:AI28) -> 0 | AJ29: =SUM(AJ27:AJ28) -> 0 | AK29: =SUM(AK27:AK28) -> 0
A30: Hosting piattaforma web | B30: 100 | C30: 100 | D30: 100 | E30: 100 | F30: 100 | G30: 100 | H30: 100 | I30: 100 | J30: 100 | K30: 100 | L30: 100 | M30: 100 | N30: 100 | O30: 100 | P30: 100 | Q30: 100 | R30: 100 | S30: 100 | T30: 100 | U30: 100 | V30: 100 | W30: 100 | X30: 100 | Y30: 100 | Z30: 100 | AA30: 100 | AB30: 100 | AC30: 100 | AD30: 100 | AE30: 100 | AF30: 100 | AG30: 100 | AH30: 100 | AI30: 100 | AJ30: 100 | AK30: 100
A31: tot | B31: =B30 -> 100 | C31: =C30 -> 100 | D31: 100 | E31: 100 | F31: 100 | G31: 100 | H31: 100 | I31: 100 | J31: 100 | K31: 100 | L31: 100 | M31: 100 | N31: 100 | O31: 100 | P31: 100 | Q31: 100 | R31: 100 | S31: 100 | T31: 100 | U31: 100 | V31: 100 | W31: 100 | X31: 100 | Y31: 100 | Z31: =Z30 -> 100 | AA31: =AA30 -> 100 | AB31: =AB30 -> 100 | AC31: =AC30 -> 100 | AD31: =AD30 -> 100 | AE31: =AE30 -> 100 | AF31: =AF30 -> 100 | AG31: =AG30 -> 100 | AH31: =AH30 -> 100 | AI31: =AI30 -> 100 | AJ31: =AJ30 -> 100 | AK31: =AK30 -> 100
A32: Spese Telefoniche | B32: 200 | C32: 200 | D32: 200 | E32: 200 | F32: 200 | G32: 200 | H32: 300 | I32: 300 | J32: 300 | K32: 300 | L32: 300 | M32: 300 | N32: 400 | O32: 400 | P32: 400 | Q32: 400 | R32: 400 | S32: 400 | T32: 400 | U32: 400 | V32: 400 | W32: 400 | X32: 400 | Y32: 400 | Z32: 500 | AA32: 500 | AB32: 500 | AC32: 500 | AD32: 500 | AE32: 500 | AF32: 500 | AG32: 500 | AH32: 500 | AI32: 500 | AJ32: 500 | AK32: 500
A33: tot | B33: =B32 -> 200 | C33: =C32 -> 200 | D33: 200 | E33: 200 | F33: 200 | G33: 200 | H33: 300 | I33: 300 | J33: 300 | K33: 300 | L33: 300 | M33: 300 | N33: 400 | O33: 400 | P33: 400 | Q33: 400 | R33: 400 | S33: 400 | T33: 400 | U33: 400 | V33: 400 | W33: 400 | X33: 400 | Y33: 400 | Z33: =Z32 -> 500 | AA33: =AA32 -> 500 | AB33: =AB32 -> 500 | AC33: =AC32 -> 500 | AD33: =AD32 -> 500 | AE33: =AE32 -> 500 | AF33: =AF32 -> 500 | AG33: =AG32 -> 500 | AH33: =AH32 -> 500 | AI33: =AI32 -> 500 | AJ33: =AJ32 -> 500 | AK33: =AK32 -> 500
A34: Studio e realizzazione campagna marketing per sottoscrittori
A35: ideazione campagna di marketing | N35: 2000 | O35: 3000
A36: materiale informativo per la vendita delle sottoscrizioni | N36: 5000 | O36: 5000 | Z36: 5000 | AA36: 5000
A37: tot | B37: =SUM(B35:B36) -> 0 | C37: =SUM(C35:C36) -> 0 | D37: 0 | E37: 0 | F37: 0 | G37: 0 | H37: 0 | I37: 0 | J37: 0 | K37: 0 | L37: 0 | M37: 0 | N37: 7000 | O37: 8000 | P37: 0 | Q37: 0 | R37: 0 | S37: 0 | T37: 0 | U37: 0 | V37: 0 | W37: 0 | X37: 0 | Y37: 0 | Z37: =SUM(Z35:Z36) -> 5000 | AA37: =SUM(AA35:AA36) -> 5000 | AB37: =SUM(AB35:AB36) -> 0 | AC37: =SUM(AC35:AC36) -> 0 | AD37: =SUM(AD35:AD36) -> 0 | AE37: =SUM(AE35:AE36) -> 0 | AF37: =SUM(AF35:AF36) -> 0 | AG37: =SUM(AG35:AG36) -> 0 | AH37: =SUM(AH35:AH36) -> 0 | AI37: =SUM(AI35:AI36) -> 0 | AJ37: =SUM(AJ35:AJ36) -> 0 | AK37: =SUM(AK35:AK36) -> 0
A38: Editor e moderatore
A39: emolumento lordo mensile | N39: 3000 | O39: 3000 | P39: 3000 | Q39: 3000 | R39: 3000 | S39: 3000 | T39: 3000 | U39: 3000 | V39: 3000 | W39: 3000 | X39: 3000 | Y39: 3000 | Z39: 6000 | AA39: 6000 | AB39: 6000 | AC39: 6000 | AD39: 6000 | AE39: 6000 | AF39: 6000 | AG39: 6000 | AH39: 6000 | AI39: 6000 | AJ39: 6000 | AK39: 6000
A40: tot | B40: =B39 -> 0 | C40: =C39 -> 0 | D40: 0 | E40: 0 | F40: 0 | G40: 0 | H40: 0 | I40: 0 | J40: 0 | K40: 0 | L40: 0 | M40: 0 | N40: 3000 | O40: 3000 | P40: 3000 | Q40: 3000 | R40: 3000 | S40: 3000 | T40: 3000 | U40: 3000 | V40: 3000 | W40: 3000 | X40: 3000 | Y40: 3000 | Z40: =Z39 -> 6000 | AA40: =AA39 -> 6000 | AB40: =AB39 -> 6000 | AC40: =AC39 -> 6000 | AD40: =AD39 -> 6000 | AE40: =AE39 -> 6000 | AF40: =AF39 -> 6000 | AG40: =AG39 -> 6000 | AH40: =AH39 -> 6000 | AI40: =AI39 -> 6000 | AJ40: =AJ39 -> 6000 | AK40: =AK39 -> 6000
A41: Locazione ufficio
A42: ufficio di una stanza in centro milano | N42: 1000 | O42: 1000 | P42: 1000 | Q42: 1000 | R42: 1000 | S42: 1000 | T42: 1000 | U42: 1000 | V42: 1000 | W42: 1000 | X42: 1000 | Y42: 1000 | Z42: 2000 | AA42: 2000 | AB42: 2000 | AC42: 2000 | AD42: 2000 | AE42: 2000 | AF42: 2000 | AG42: 2000 | AH42: 2000 | AI42: 2000 | AJ42: 2000 | AK42: 2000
A43: tot | B43: =B42 -> 0 | C43: =C42 -> 0 | D43: 0 | E43: 0 | F43: 0 | G43: 0 | H43: 0 | I43: 0 | J43: 0 | K43: 0 | L43: 0 | M43: 0 | N43: 1000 | O43: 1000 | P43: 1000 | Q43: 1000 | R43: 1000 | S43: 1000 | T43: 1000 | U43: 1000 | V43: 1000 | W43: 1000 | X43: 1000 | Y43: 1000 | Z43: =Z42 -> 2000 | AA43: =AA42 -> 2000 | AB43: =AB42 -> 2000 | AC43: =AC42 -> 2000 | AD43: =AD42 -> 2000 | AE43: =AE42 -> 2000 | AF43: =AF42 -> 2000 | AG43: =AG42 -> 2000 | AH43: =AH42 -> 2000 | AI43: =AI42 -> 2000 | AJ43: =AJ42 -> 2000 | AK43: =AK42 -> 2000
A44: Ufficio stampa
A45: consulenza esterna | N45: 600 | O45: 600 | P45: 600 | Q45: 600 | R45: 600 | S45: 600 | T45: 600 | U45: 600 | V45: 600 | W45: 600 | X45: 600 | Y45: 600 | Z45: 900 | AA45: 900 | AB45: 900 | AC45: 900 | AD45: 900 | AE45: 900 | AF45: 900 | AG45: 900 | AH45: 900 | AI45: 900 | AJ45: 900 | AK45: 900
A46: tot | B46: =B45 -> 0 | C46: =C45 -> 0 | D46: 0 | E46: 0 | F46: 0 | G46: 0 | H46: 0 | I46: 0 | J46: 0 | K46: 0 | L46: 0 | M46: 0 | N46: 600 | O46: 600 | P46: 600 | Q46: 600 | R46: 600 | S46: 600 | T46: 600 | U46: 600 | V46: 600 | W46: 600 | X46: 600 | Y46: 600 | Z46: =Z45 -> 900 | AA46: =AA45 -> 900 | AB46: =AB45 -> 900 | AC46: =AC45 -> 900 | AD46: =AD45 -> 900 | AE46: =AE45 -> 900 | AF46: =AF45 -> 900 | AG46: =AG45 -> 900 | AH46: =AH45 -> 900 | AI46: =AI45 -> 900 | AJ46: =AJ45 -> 900 | AK46: =AK45 -> 900
A47: Consulenza legale
A48: consulenza esterna | I48: 1000 | J48: 1000 | K48: 1000 | L48: 1000 | M48: 1000 | N48: 1000 | O48: 1000 | P48: 1000 | Q48: 1000 | R48: 1000 | S48: 1000 | T48: 1000 | U48: 1000 | V48: 1000 | W48: 1000 | X48: 1000 | Y48: 1000 | Z48: 1500 | AA48: 1500 | AB48: 1500 | AC48: 1500 | AD48: 1500 | AE48: 1500 | AF48: 1500 | AG48: 1500 | AH48: 1500 | AI48: 1500 | AJ48: 1500 | AK48: 1500
A49: tot | B49: =B48 -> 0 | C49: =C48 -> 0 | D49: 0 | E49: 0 | F49: 0 | G49: 0 | H49: 0 | I49: 1000 | J49: 1000 | K49: 1000 | L49: 1000 | M49: 1000 | N49: 1000 | O49: 1000 | P49: 1000 | Q49: 1000 | R49: 1000 | S49: 1000 | T49: 1000 | U49: 1000 | V49: 1000 | W49: 1000 | X49: 1000 | Y49: 1000 | Z49: =Z48 -> 1500 | AA49: =AA48 -> 1500 | AB49: =AB48 -> 1500 | AC49: =AC48 -> 1500 | AD49: =AD48 -> 1500 | AE49: =AE48 -> 1500 | AF49: =AF48 -> 1500 | AG49: =AG48 -> 1500 | AH49: =AH48 -> 1500 | AI49: =AI48 -> 1500 | AJ49: =AJ48 -> 1500 | AK49: =AK48 -> 1500
A51: TOTALE | B51: =B49+B46+B43+B40+B37+B33+B29+B25+B31+B21+B16+B13+B10+B6 -> 8650 | C51: =C49+C46+C43+C40+C37+C33+C29+C25+C31+C21+C16+C13+C10+C6 -> 7850 | D51: 4850 | E51: 8350 | F51: 8350 | G51: 3550 | H51: 4150 | I51: 4650 | J51: 4650 | K51: 4650 | L51: 4650 | M51: 4650 | N51: 18200 | O51: 17450 | P51: 9450 | Q51: 9450 | R51: 9550 | S51: 9550 | T51: 10300 | U51: 9550 | V51: 9550 | W51: 9550 | X51: 9550 | Y51: 9550 | Z51: =Z49+Z46+Z43+Z40+Z37+Z33+Z29+Z25+Z31+Z21+Z16+Z13+Z10+Z6 -> 24450 | AA51: =AA49+AA46+AA43+AA40+AA37+AA33+AA29+AA25+AA31+AA21+AA16+AA13+AA10+AA6 -> 22450 | AB51: =AB49+AB46+AB43+AB40+AB37+AB33+AB29+AB25+AB31+AB21+AB16+AB13+AB10+AB6 -> 17450 | AC51: =AC49+AC46+AC43+AC40+AC37+AC33+AC29+AC25+AC31+AC21+AC16+AC13+AC10+AC6 -> 17450 | AD51: =AD49+AD46+AD43+AD40+AD37+AD33+AD29+AD25+AD31+AD21+AD16+AD13+AD10+AD6 -> 17450 | AE51: =AE49+AE46+AE43+AE40+AE37+AE33+AE29+AE25+AE31+AE21+AE16+AE13+AE10+AE6 -> 17450 | AF51: =AF49+AF46+AF43+AF40+AF37+AF33+AF29+AF25+AF31+AF21+AF16+AF13+AF10+AF6 -> 18450 | AG51: =AG49+AG46+AG43+AG40+AG37+AG33+AG29+AG25+AG31+AG21+AG16+AG13+AG10+AG6 -> 17450 | AH51: =AH49+AH46+AH43+AH40+AH37+AH33+AH29+AH25+AH31+AH21+AH16+AH13+AH10+AH6 -> 17450 | AI51: =AI49+AI46+AI43+AI40+AI37+AI33+AI29+AI25+AI31+AI21+AI16+AI13+AI10+AI6 -> 17450 | AJ51: =AJ49+AJ46+AJ43+AJ40+AJ37+AJ33+AJ29+AJ25+AJ31+AJ21+AJ16+AJ13+AJ10+AJ6 -> 17450 | AK51: =AK49+AK46+AK43+AK40+AK37+AK33+AK29+AK25+AK31+AK21+AK16+AK13+AK10+AK6 -> 17450

Sheet Input Ricavi
C1: 2010-01-01 | D1: 2010-02-01 | E1: 2010-03-01 | F1: 2010-04-01 | G1: 2010-05-01 | H1: 2010-06-01 | I1: 2010-07-01 | J1: 2010-08-01 | K1: 2010-09-01 | L1: 2010-10-01 | M1: 2010-11-01 | N1: 2010-12-01 | O1: 2011-01-01 | P1: 2011-02-01 | Q1: 2011-03-01 | R1: 2011-04-01 | S1: 2011-05-01 | T1: 2011-06-01 | U1: 2011-07-01 | V1: 2011-08-01 | W1: 2011-09-01 | X1: 2011-10-01 | Y1: 2011-11-01 | Z1: 2011-12-01 | AA1: 2012-01-01 | AB1: 2012-02-01 | AC1: 2012-03-01 | AD1: 2012-04-01 | AE1: 2012-05-01 | AF1: 2012-06-01 | AG1: 2012-07-01 | AH1: 2012-08-01 | AI1: 2012-09-01 | AJ1: 2012-10-01 | AK1: 2012-11-01 | AL1: 2012-12-01
A3: Numero Ospedali
A4: Pubblici | C4: 654 | D4: 654 | E4: 654 | F4: 654 | G4: 654 | H4: 654 | I4: 654 | J4: 654 | K4: 654 | L4: 654 | M4: 654 | N4: 654 | O4: 654 | P4: 654 | Q4: 654 | R4: 654 | S4: 654 | T4: 654 | U4: 654 | V4: 654 | W4: 654 | X4: 654 | Y4: 654 | Z4: 654 | AA4: 654 | AB4: 654 | AC4: 654 | AD4: 654 | AE4: 654 | AF4: 654 | AG4: 654 | AH4: 654 | AI4: 654 | AJ4: 654 | AK4: 654 | AL4: 654
A5: Privati | C5: 555 | D5: 555 | E5: 555 | F5: 555 | G5: 555 | H5: 555 | I5: 555 | J5: 555 | K5: 555 | L5: 555 | M5: 555 | N5: 555 | O5: 555 | P5: 555 | Q5: 555 | R5: 555 | S5: 555 | T5: 555 | U5: 555 | V5: 555 | W5: 555 | X5: 555 | Y5: 555 | Z5: 555 | AA5: 555 | AB5: 555 | AC5: 555 | AD5: 555 | AE5: 555 | AF5: 555 | AG5: 555 | AH5: 555 | AI5: 555 | AJ5: 555 | AK5: 555 | AL5: 555
A6: tot | C6: =C4+C5 -> 1209 | D6: =D4+D5 -> 1209 | E6: 1209 | F6: 1209 | G6: 1209 | H6: 1209 | I6: 1209 | J6: 1209 | K6: 1209 | L6: 1209 | M6: 1209 | N6: 1209 | O6: 1209 | P6: 1209 | Q6: 1209 | R6: 1209 | S6: 1209 | T6: 1209 | U6: 1209 | V6: 1209 | W6: 1209 | X6: 1209 | Y6: 1209 | Z6: 1209 | AA6: =AA4+AA5 -> 1209 | AB6: 1209 | AC6: 1209 | AD6: 1209 | AE6: 1209 | AF6: 1209 | AG6: 1209 | AH6: 1209 | AI6: 1209 | AJ6: 1209 | AK6: 1209 | AL6: 1209
A7: Hit Ratio
A8: Pubblici | C8: 0 | D8: 0 | E8: 0 | F8: 0 | G8: 0 | H8: 0 | I8: 0 | J8: 0 | K8: 0.0015 | L8: 0.003 | M8: 0.003 | N8: 0.004 | O8: 0.005 | P8: 0.0075 | Q8: 0.01 | R8: 0.01 | S8: 0.01 | T8: 0.0125 | U8: 0.0125 | V8: 0.0125 | W8: 0.015 | X8: 0.015 | Y8: 0.0175 | Z8: 0.0175 | AA8: 0.02 | AB8: 0.02 | AC8: 0.02 | AD8: 0.0225 | AE8: 0.025 | AF8: 0.025 | AG8: 0.025 | AH8: 0.0275 | AI8: 0.03 | AJ8: 0.03 | AK8: 0.0325 | AL8: 0.0325
A9: Privati | C9: 0 | D9: 0 | E9: 0 | F9: 0 | G9: 0 | H9: 0 | I9: 0 | J9: 0 | K9: 0.0015 | L9: 0.003 | M9: 0.003 | N9: 0.004 | O9: 0.005 | P9: 0.0075 | Q9: 0.01 | R9: 0.01 | S9: 0.01 | T9: 0.0125 | U9: 0.0125 | V9: 0.0125 | W9: 0.015 | X9: 0.015 | Y9: 0.0175 | Z9: 0.0175 | AA9: 0.02 | AB9: 0.02 | AC9: 0.02 | AD9: 0.0225 | AE9: 0.025 | AF9: 0.025 | AG9: 0.025 | AH9: 0.0275 | AI9: 0.03 | AJ9: 0.03 | AK9: 0.0325 | AL9: 0.0325
A10: tot
A11: Sottoscrizioni (Numero)
A12: Pubblici | C12: =C8*C4 -> 0 | D12: =D8*D4 -> 0 | E12: 0 | F12: 0 | G12: 0 | H12: 0 | I12: 0 | J12: 0 | K12: 0.981 | L12: 1.962 | M12: 1.962 | N12: 2.616 | O12: 3.27 | P12: 4.905 | Q12: 6.54 | R12: 6.54 | S12: 6.54 | T12: 8.175 | U12: 8.175 | V12: 8.175 | W12: 9.81 | X12: 9.81 | Y12: 11.445 | Z12: 11.445 | AA12: =AA8*AA4 -> 13.08 | AB12: 13.08 | AC12: 13.08 | AD12: 14.715 | AE12: 16.35 | AF12: 16.35 | AG12: 16.35 | AH12: =AH8*AH4 -> 17.985 | AI12: =AI8*AI4 -> 19.62 | AJ12: 19.62 | AK12: 21.255 | AL12: 21.255
A13: Privati | C13: =C9*C5 -> 0 | D13: =D9*D5 -> 0 | E13: 0 | F13: 0 | G13: 0 | H13: 0 | I13: 0 | J13: 0 | K13: 0.8325 | L13: 1.665 | M13: 1.665 | N13: 2.22 | O13: 2.775 | P13: 4.1625 | Q13: 5.55 | R13: 5.55 | S13: 5.55 | T13: 6.9375 | U13: 6.9375 | V13: 6.9375 | W13: 8.325 | X13: 8.325 | Y13: 9.7125 | Z13: 9.7125 | AA13: =AA9*AA5 -> 11.1 | AB13: 11.1 | AC13: 11.1 | AD13: 12.4875 | AE13: 13.875 | AF13: 13.875 | AG13: 13.875 | AH13: =AH9*AH5 -> 15.2625 | AI13: =AI9*AI5 -> 16.65 | AJ13: 16.65 | AK13: 18.0375 | AL13: 18.0375
A14: tot | C14: =C13+C12 -> 0 | D14: =D13+D12 -> 0 | E14: 0 | F14: 0 | G14: 0 | H14: 0 | I14: 0 | J14: 0 | K14: 1.8135 | L14: 3.627 | M14: 3.627 | N14: 4.836 | O14: 6.045 | P14: 9.0675 | Q14: 12.09 | R14: 12.09 | S14: 12.09 | T14: 15.1125 | U14: 15.1125 | V14: 15.1125 | W14: 18.135 | X14: 18.135 | Y14: 21.1575 | Z14: 21.1575 | AA14: =AA13+AA12 -> 24.18 | AB14: 24.18 | AC14: 24.18 | AD14: 27.2025 | AE14: 30.225 | AF14: 30.225 | AG14: 30.225 | AH14: 33.2475 | AI14: 36.27 | AJ14: 36.27 | AK14: 39.2925 | AL14: 39.2925
A15: Sottoscrizioni (fees mensili)
A16: Pubblici | B16: 9000 | C16: =$B$16/12 -> 750 | D16: =$B$16/12 -> 750 | E16: 750 | F16: 750 | G16: 750 | H16: 750 | I16: 750 | J16: 750 | K16: 750 | L16: 750 | M16: 750 | N16: 750 | O16: 750 | P16: 750 | Q16: 750 | R16: 750 | S16: 750 | T16: 750 | U16: 750 | V16: 750 | W16: 750 | X16: 750 | Y16: 750 | Z16: 750 | AA16: 750 | AB16: 750 | AC16: 750 | AD16: 750 | AE16: 750 | AF16: 750 | AG16: 750 | AH16: 750 | AI16: 750 | AJ16: 750 | AK16: 750 | AL16: 750
A17: Privati | B17: 9000 | C17: =$B$17/12 -> 750 | D17: =$B$17/12 -> 750 | E17: 750 | F17: 750 | G17: 750 | H17: 750 | I17: 750 | J17: 750 | K17: 750 | L17: 750 | M17: 750 | N17: 750 | O17: 750 | P17: 750 | Q17: 750 | R17: 750 | S17: 750 | T17: 750 | U17: 750 | V17: 750 | W17: 750 | X17: 750 | Y17: 750 | Z17: 750 | AA17: 750 | AB17: 750 | AC17: 750 | AD17: 750 | AE17: 750 | AF17: 750 | AG17: 750 | AH17: 750 | AI17: 750 | AJ17: 750 | AK17: 750 | AL17: 750
A19: Sottoscrizioni (fatturato)
A20: Pubblici | C20: =C16*C12 -> 0 | D20: =D16*D12 -> 0 | E20: 0 | F20: 0 | G20: 0 | H20: 0 | I20: 0 | J20: 0 | K20: 735.75 | L20: 1471.5 | M20: 1471.5 | N20: 1962 | O20: 2452.5 | P20: 3678.75 | Q20: 4905 | R20: 4905 | S20: 4905 | T20: 6131.25 | U20: 6131.25 | V20: 6131.25 | W20: 7357.5 | X20: 7357.5 | Y20: 8583.75 | Z20: 8583.75 | AA20: =AA16*AA12 -> 9810 | AB20: 9810 | AC20: 9810 | AD20: 11036.25 | AE20: 12262.5 | AF20: 12262.5 | AG20: 12262.5 | AH20: 13488.75 | AI20: 14715 | AJ20: 14715 | AK20: 15941.25 | AL20: 15941.25
A21: Privati | C21: =C17*C13 -> 0 | D21: =D17*D13 -> 0 | E21: 0 | F21: 0 | G21: 0 | H21: 0 | I21: 0 | J21: 0 | K21: 624.375 | L21: 1248.75 | M21: 1248.75 | N21: 1665 | O21: 2081.25 | P21: 3121.875 | Q21: 4162.5 | R21: 4162.5 | S21: 4162.5 | T21: 5203.125 | U21: 5203.125 | V21: 5203.125 | W21: 6243.75 | X21: 6243.75 | Y21: 7284.375 | Z21: 7284.375 | AA21: =AA17*AA13 -> 8325 | AB21: 8325 | AC21: 8325 | AD21: 9365.625 | AE21: 10406.25 | AF21: 10406.25 | AG21: 10406.25 | AH21: 11446.875 | AI21: 12487.5 | AJ21: 12487.5 | AK21: 13528.125 | AL21: 13528.125
A22: tot | C22: =C21+C20 -> 0 | D22: =D21+D20 -> 0 | E22: =E21+E20 -> 0 | F22: =F21+F20 -> 0 | G22: =G21+G20 -> 0 | H22: =H21+H20 -> 0 | I22: =I21+I20 -> 0 | J22: =J21+J20 -> 0 | K22: =K21+K20 -> 1360.125 | L22: =L21+L20 -> 2720.25 | M22: =M21+M20 -> 2720.25 | N22: =N21+N20 -> 3627 | O22: =O21+O20 -> 4533.75 | P22: =P21+P20 -> 6800.625 | Q22: =Q21+Q20 -> 9067.5 | R22: =R21+R20 -> 9067.5 | S22: =S21+S20 -> 9067.5 | T22: =T21+T20 -> 11334.375 | U22: =U21+U20 -> 11334.375 | V22: =V21+V20 -> 11334.375 | W22: =W21+W20 -> 13601.25 | X22: =X21+X20 -> 13601.25 | Y22: =Y21+Y20 -> 15868.125 | Z22: =Z21+Z20 -> 15868.125 | AA22: 18135 | AB22: 18135 | AC22: 18135 | AD22: 20401.875 | AE22: 22668.75 | AF22: 22668.75 | AG22: 22668.75 | AH22: 24935.625 | AI22: 27202.5 | AJ22: 27202.5 | AK22: 29469.375 | AL22: =AL21+AL20 -> 29469.375

Sheet Pagina Grafici
B1: ='Input Costi'!B1 -> 2010-01-01 | C1: ='Input Costi'!C1 -> 2010-02-01 | D1: ='Input Costi'!D1 -> 2010-03-01 | E1: ='Input Costi'!E1 -> 2010-04-01 | F1: ='Input Costi'!F1 -> 2010-05-01 | G1: ='Input Costi'!G1 -> 2010-06-01 | H1: ='Input Costi'!H1 -> 2010-07-01 | I1: ='Input Costi'!I1 -> 2010-08-01 | J1: ='Input Costi'!J1 -> 2010-09-01 | K1: ='Input Costi'!K1 -> 2010-10-01 | L1: ='Input Costi'!L1 -> 2010-11-01 | M1: ='Input Costi'!M1 -> 2010-12-01 | N1: ='Input Costi'!N1 -> 2011-01-01 | O1: ='Input Costi'!O1 -> 2011-02-01 | P1: ='Input Costi'!P1 -> 2011-03-01 | Q1: ='Input Costi'!Q1 -> 2011-04-01 | R1: ='Input Costi'!R1 -> 2011-05-01 | S1: ='Input Costi'!S1 -> 2011-06-01 | T1: ='Input Costi'!T1 -> 2011-07-01 | U1: ='Input Costi'!U1 -> 2011-08-01 | V1: ='Input Costi'!V1 -> 2011-09-01 | W1: ='Input Costi'!W1 -> 2011-10-01 | X1: ='Input Costi'!X1 -> 2011-11-01 | Y1: ='Input Costi'!Y1 -> 2011-12-01 | Z1: ='Input Costi'!Z1 -> 2012-01-01 | AA1: ='Input Costi'!AA1 -> 2012-02-01 | AB1: ='Input Costi'!AB1 -> 2012-03-01 | AC1: ='Input Costi'!AC1 -> 2012-04-01 | AD1: ='Input Costi'!AD1 -> 2012-05-01 | AE1: ='Input Costi'!AE1 -> 2012-06-01 | AF1: ='Input Costi'!AF1 -> 2012-07-01 | AG1: ='Input Costi'!AG1 -> 2012-08-01 | AH1: ='Input Costi'!AH1 -> 2012-09-01 | AI1: ='Input Costi'!AI1 -> 2012-10-01 | AJ1: ='Input Costi'!AJ1 -> 2012-11-01 | AK1: ='Input Costi'!AK1 -> 2012-12-01
A2: Ricavi | B2: ='Input Ricavi'!C22 -> 0 | C2: ='Input Ricavi'!D22 -> 0 | D2: ='Input Ricavi'!E22 -> 0 | E2: ='Input Ricavi'!F22 -> 0 | F2: ='Input Ricavi'!G22 -> 0 | G2: ='Input Ricavi'!H22 -> 0 | H2: ='Input Ricavi'!I22 -> 0 | I2: ='Input Ricavi'!J22 -> 0 | J2: ='Input Ricavi'!K22 -> 1360.125 | K2: ='Input Ricavi'!L22 -> 2720.25 | L2: ='Input Ricavi'!M22 -> 2720.25 | M2: ='Input Ricavi'!N22 -> 3627 | N2: ='Input Ricavi'!O22 -> 4533.75 | O2: ='Input Ricavi'!P22 -> 6800.625 | P2: ='Input Ricavi'!Q22 -> 9067.5 | Q2: ='Input Ricavi'!R22 -> 9067.5 | R2: ='Input Ricavi'!S22 -> 9067.5 | S2: ='Input Ricavi'!T22 -> 11334.375 | T2: ='Input Ricavi'!U22 -> 11334.375 | U2: ='Input Ricavi'!V22 -> 11334.375 | V2: ='Input Ricavi'!W22 -> 13601.25 | W2: ='Input Ricavi'!X22 -> 13601.25 | X2: ='Input Ricavi'!Y22 -> 15868.125 | Y2: ='Input Ricavi'!Z22 -> 15868.125 | Z2: ='Input Ricavi'!AA22 -> 18135 | AA2: ='Input Ricavi'!AB22 -> 18135 | AB2: ='Input Ricavi'!AC22 -> 18135 | AC2: ='Input Ricavi'!AD22 -> 20401.875 | AD2: ='Input Ricavi'!AE22 -> 22668.75 | AE2: ='Input Ricavi'!AF22 -> 22668.75 | AF2: ='Input Ricavi'!AG22 -> 22668.75 | AG2: ='Input Ricavi'!AH22 -> 24935.625 | AH2: ='Input Ricavi'!AI22 -> 27202.5 | AI2: ='Input Ricavi'!AJ22 -> 27202.5 | AJ2: ='Input Ricavi'!AK22 -> 29469.375 | AK2: ='Input Ricavi'!AL22 -> 29469.375
A3: Costi | B3: ='Input Costi'!B51 -> 8650 | C3: ='Input Costi'!C51 -> 7850 | D3: ='Input Costi'!D51 -> 4850 | E3: ='Input Costi'!E51 -> 8350 | F3: ='Input Costi'!F51 -> 8350 | G3: ='Input Costi'!G51 -> 3550 | H3: ='Input Costi'!H51 -> 4150 | I3: ='Input Costi'!I51 -> 4650 | J3: ='Input Costi'!J51 -> 4650 | K3: ='Input Costi'!K51 -> 4650 | L3: ='Input Costi'!L51 -> 4650 | M3: ='Input Costi'!M51 -> 4650 | N3: ='Input Costi'!N51 -> 18200 | O3: ='Input Costi'!O51 -> 17450 | P3: ='Input Costi'!P51 -> 9450 | Q3: ='Input Costi'!Q51 -> 9450 | R3: ='Input Costi'!R51 -> 9550 | S3: ='Input Costi'!S51 -> 9550 | T3: ='Input Costi'!T51 -> 10300 | U3: ='Input Costi'!U51 -> 9550 | V3: ='Input Costi'!V51 -> 9550 | W3: ='Input Costi'!W51 -> 9550 | X3: ='Input Costi'!X51 -> 9550 | Y3: ='Input Costi'!Y51 -> 9550 | Z3: ='Input Costi'!Z51 -> 24450 | AA3: ='Input Costi'!AA51 -> 22450 | AB3: ='Input Costi'!AB51 -> 17450 | AC3: ='Input Costi'!AC51 -> 17450 | AD3: ='Input Costi'!AD51 -> 17450 | AE3: ='Input Costi'!AE51 -> 17450 | AF3: ='Input Costi'!AF51 -> 18450 | AG3: ='Input Costi'!AG51 -> 17450 | AH3: ='Input Costi'!AH51 -> 17450 | AI3: ='Input Costi'!AI51 -> 17450 | AJ3: ='Input Costi'!AJ51 -> 17450 | AK3: ='Input Costi'!AK51 -> 17450
B5: =B1 -> 2010-01-01 | C5: =C1 -> 2010-02-01 | D5: 2010-03-01 | E5: 2010-04-01 | F5: 2010-05-01 | G5: 2010-06-01 | H5: 2010-07-01 | I5: 2010-08-01 | J5: 2010-09-01 | K5: 2010-10-01 | L5: 2010-11-01 | M5: 2010-12-01 | N5: 2011-01-01 | O5: 2011-02-01 | P5: 2011-03-01 | Q5: 2011-04-01 | R5: 2011-05-01 | S5: 2011-06-01 | T5: 2011-07-01 | U5: 2011-08-01 | V5: 2011-09-01 | W5: 2011-10-01 | X5: 2011-11-01 | Y5: 2011-12-01 | Z5: 2012-01-01 | AA5: 2012-02-01 | AB5: 2012-03-01 | AC5: 2012-04-01 | AD5: 2012-05-01 | AE5: 2012-06-01 | AF5: 2012-07-01 | AG5: 2012-08-01 | AH5: 2012-09-01 | AI5: 2012-10-01 | AJ5: 2012-11-01 | AK5: 2012-12-01
A6: Fabbisogno | B6: =Summary!B37 -> 8650 | C6: =Summary!C37 -> 16500 | D6: =Summary!D37 -> 21350 | E6: =Summary!E37 -> 29700 | F6: =Summary!F37 -> 38050 | G6: =Summary!G37 -> 41600 | H6: =Summary!H37 -> 45750 | I6: =Summary!I37 -> 50400 | J6: =Summary!J37 -> 53689.875 | K6: =Summary!K37 -> 55619.625 | L6: =Summary!L37 -> 57549.375 | M6: =Summary!M37 -> 58572.375 | N6: =Summary!P37 -> 72238.625 | O6: =Summary!Q37 -> 82888 | P6: =Summary!R37 -> 83270.5 | Q6: =Summary!S37 -> 83653 | R6: =Summary!T37 -> 84135.5 | S6: =Summary!U37 -> 82351.125 | T6: =Summary!V37 -> 81316.75 | U6: =Summary!W37 -> 79532.375 | V6: =Summary!X37 -> 75481.125 | W6: =Summary!Y37 -> 71429.875 | X6: =Summary!Z37 -> 65111.75 | Y6: =Summary!AA37 -> 58793.625 | Z6: =Summary!AD37 -> 65108.625 | AA6: =Summary!AE37 -> 69423.625 | AB6: =Summary!AF37 -> 68738.625 | AC6: =Summary!AG37 -> 65786.75 | AD6: =Summary!AH37 -> 60568 | AE6: =Summary!AI37 -> 55349.25 | AF6: =Summary!AJ37 -> 51130.5 | AG6: =Summary!AK37 -> 43644.875 | AH6: =Summary!AL37 -> 33892.375 | AI6: =Summary!AM37 -> 24139.875 | AJ6: =Summary!AN37 -> 12120.5 | AK6: =Summary!AO37 -> 101.125
